bitfinex-derivatives/quotes_ETHF0:USTF0_20251028
["timestamp","ask_amount","ask_price","bid_price","bid_amount"]
[1761648301894,0.7777,4115.5,4115.4,0.7865]
[1761648302098,0.7777,4115.3,4115.2,0.0026062]
[1761648303201,0.7777,4115.3,4115.2,0.7891062]
[1761648303402,0.231,4115.3,4115.2,1.2265362]
[1761648303596,3.5428,4115.6,4115.2,1.2265362]
[1761648303597,0.566,4115.6,4115.5,0.9146]
[1761648303912,1.33034552,4115.6,4115.5,0.7865]
[1761648304606,1.33034552,4115.6,4115.5,1.3553]
[1761648304809,0.7777,4115.6,4115.5,1.3553]
[1761648305906,0.00174753,4115.7,4115.6,0.43738]
[1761648306207,0.00174753,4115.7,4115.6,1.18078]
[1761648306398,0.21414753,4115.7,4115.6,1.18078]
[1761648306599,0.53214753,4115.7,4115.6,1.18078]
[1761648307106,0.53214753,4115.7,4115.6,0.7434]
[1761648307407,0.74384753,4115.7,4115.6,1.18078]
[1761648307912,0.74384753,4115.7,4115.6,0.7434]
[1761648308114,0.74384753,4115.7,4115.6,1.18078]
[1761648308310,0.00174753,4115.7,4115.6,1.18078]
[1761648308900,0.00174753,4115.7,4115.6,2.49294803]
[1761648309307,0.22934753,4115.7,4115.6,1.18078]
[1761648310099,0.00174753,4115.7,4115.6,1.18078]
[1761648310513,0.00174753,4115.7,4115.6,1.25358]
[1761648310710,0.00174753,4115.7,4115.6,2.56574803]
[1761648311715,0.00174753,4115.7,4115.6,2.49294803]
[1761648312513,0.00174753,4115.7,4115.6,1.18078]
[1761648312813,0.00174753,4115.7,4115.6,2.49294803]
[1761648313316,0.00174753,4115.7,4115.6,1.18078]
[1761648316616,0.00174753,4115.7,4115.6,1.25358]
[1761648317318,0.00174753,4115.7,4115.6,1.18078]
[1761648319616,0.00174753,4115.7,4115.6,4.38858]
[1761648320019,0.00174753,4115.7,4115.6,5.70074803]
[1761648323222,0.00174753,4115.7,4115.6,9.59874803]
[1761648323916,0.2276,4116.3,4116.2,0.98072]
[1761648324112,0.129,4117.0,4116.9,1.20065]
[1761648324113,0.5556,4117.0,4116.9,1.20065]
[1761648324311,0.328,4117.4,4117.0,0.1385]
[1761648324513,0.328,4117.4,4117.3,0.3144]
[1761648324514,0.782,4117.4,4117.3,0.3144]
[1761648324714,0.782,4117.4,4116.7,4.51605348]
[1761648324715,0.782,4117.2,4117.1,0.75162]
[1761648324911,0.782,4117.2,4117.1,1.20062]
[1761648324912,0.78468639,4117.2,4117.1,1.20062]
[1761648325110,0.00268639,4117.2,4117.1,1.20062]
[1761648325714,0.23028639,4117.2,4117.1,1.20062]
[1761648326517,0.78468639,4117.2,4117.1,0.7634]
[1761648327212,0.78468639,4117.2,4117.1,1.20063]
[1761648329416,0.328,4117.1,4116.8,0.3144]
[1761648329622,0.782,4116.4,4116.3,0.5434]
[1761648329819,0.328,4116.3,4116.2,0.3144]
[1761648330125,0.328,4116.3,4115.5,3.6568]
[1761648330126,0.328,4115.9,4115.5,3.6568]
[1761648330320,0.782,4115.6,4115.5,3.6568]
[1761648330517,0.782,4115.6,4115.5,3.9712]
[1761648330912,0.8548,4115.6,4115.5,3.2078]
[1761648331117,0.782,4115.3,4115.2,0.0026062]
[1761648331819,0.782,4115.3,4115.2,0.7660062]
[1761648332021,0.2276,4115.3,4115.2,0.7660062]
[1761648332316,0.5556,4115.6,4115.5,0.9019]
[1761648334516,0.2276,4115.6,4115.5,0.9019]
[1761648334719,0.7665,4115.9,4115.8,0.7857]
[1761648335024,3.5295,4116.2,4116.1,0.4403]
[1761648335223,3.9743,4116.2,4116.1,0.7857]
[1761648335925,3.6526,4116.2,4116.1,0.7857]
[1761648337221,3.9743,4116.2,4116.1,0.7857]
[1761648339715,3.9743,4116.2,4116.1,1.22303]
[1761648343028,3.9743,4116.2,4116.1,0.5708]
[1761648343232,0.4448,4116.0,4115.9,0.5708]
[1761648343432,0.7665,4116.0,4115.9,0.5708]
[1761648343628,0.9012,4116.0,4115.9,0.2254]
[1761648344128,0.9012,4116.0,4115.9,0.5708]
[1761648344325,0.974,4116.0,4115.9,0.5708]
[1761648344634,0.9012,4116.0,4115.9,0.5708]
[1761648345234,0.974,4116.0,4115.9,0.5708]
[1761648345424,0.9012,4116.0,4115.9,0.5708]
[1761648345627,0.7665,4116.0,4115.9,0.5708]
[1761648346125,0.7665,4116.0,4115.9,1.22305]
[1761648346433,0.4448,4116.0,4115.9,1.22305]
[1761648347137,0.7665,4116.0,4115.9,1.22305]
[1761648351834,0.7665,4116.0,4115.9,0.7857]
[1761648353134,0.7665,4116.0,4115.9,1.22305]
[1761648355934,0.4448,4116.0,4115.9,1.22305]
[1761648356239,0.7665,4116.0,4115.9,0.7857]
[1761648358535,0.2192,4116.0,4115.9,0.7857]
[1761648359439,0.5409,4116.0,4115.9,0.7857]
[1761648360934,0.7665,4116.0,4115.9,0.7857]
[1761648361938,0.2192,4115.7,4115.6,0.5708]
[1761648362243,0.7665,4115.3,4115.2,0.0026062]
[1761648363140,0.5409,4115.3,4115.2,0.7883062]
[1761648363441,40.8,4115.7,4115.6,0.7857]
[1761648363442,0.7665,4115.7,4115.6,0.7857]
[1761648363638,1.3216046,4115.7,4115.6,0.7857]
[1761648364035,1.3216046,4115.7,4115.6,0.5708]
[1761648365139,0.3189,4115.6,4115.3,0.3353]
[1761648365445,0.7545,4115.4,4115.3,0.5459]
[1761648366143,0.8273,4115.4,4115.3,0.5459]
[1761648366348,0.7545,4115.3,4115.2,0.0026062]
[1761648366747,0.7545,4115.3,4115.2,0.3379062]
[1761648366947,0.7545,4115.3,4115.2,0.5485062]
[1761648367544,0.8273,4115.3,4115.2,0.5485062]
[1761648367946,0.7545,4115.3,4115.2,0.5485062]
[1761648369448,0.7545,4115.3,4115.2,1.2106362]
[1761648369449,0.3189,4115.3,4115.2,1.2106362]
[1761648369655,0.7675,4115.6,4115.5,0.5636]
[1761648369854,0.7675,4115.6,4115.5,0.7956]
[1761648371754,0.3286,4115.5,4115.3,0.3389]
[1761648371963,0.7675,4115.3,4115.2,0.0026062]
[1761648372261,0.7675,4115.3,4115.2,1.2356362]
[1761648373059,0.4389,4115.7,4115.6,0.7956]
[1761648373653,0.7675,4115.7,4115.6,0.7956]
[1761648375059,0.7675,4115.7,4115.6,0.5709]
[1761648375363,0.7675,4115.4,4115.3,0.232]
[1761648375856,0.7675,4115.4,4115.3,1.00831]
[1761648376561,0.7675,4115.4,4115.3,1.23301]
[1761648377263,0.7675,4115.4,4115.3,0.7956]
[1761648378964,0.7675,4115.4,4115.3,1.23301]
[1761648386872,0.7675,4115.4,4115.3,0.3389]
[1761648387064,0.7675,4115.4,4115.3,0.5709]
[1761648387264,0.7675,4115.3,4115.2,0.3415062]
[1761648387472,0.8403,4115.3,4115.2,0.3415062]
[1761648388364,0.8403,4115.3,4115.2,0.0026062]
[1761648388571,0.8403,4115.3,4115.2,0.3415062]
[1761648388873,0.8403,4115.3,4115.2,0.0026062]
[1761648389172,0.07766823,4115.3,4115.2,1.2356362]
[1761648389474,3.4347,4116.0,4115.9,0.7956]
[1761648389675,3.4347,4116.0,4115.9,1.23296]
[1761648389972,3.2078,4116.0,4115.9,1.23296]
[1761648390167,0.3286,4116.2,4116.1,0.7956]
[1761648390168,0.5555,4116.2,4116.1,0.7956]
[1761648390473,0.7675,4116.2,4116.1,0.7956]
[1761648391472,0.2269,4116.2,4116.1,0.7956]
[1761648391969,0.2269,4116.2,4116.1,4.0034]
[1761648392170,0.7675,4116.5,4116.4,0.7956]
[1761648397173,0.7675,4116.5,4116.1,3.2078]
[1761648397174,0.5396,4116.8,4116.7,0.7391]
[1761648397382,0.7671,4116.8,4116.7,0.7391]
[1761648398073,0.7671,4116.4,4116.3,0.7391]
[1761648398271,0.7671,4116.2,4116.1,0.5269]
[1761648398976,0.7671,4116.2,4116.1,0.3143]
[1761648399570,0.8399,4116.2,4116.1,0.3143]
[1761648400381,0.8399,4116.2,4116.1,0.5269]
[1761648402282,0.8399,4116.2,4116.1,0.7391]
[1761648403984,0.444,4115.5,4115.2,0.0026062]
[1761648404185,0.7671,4115.3,4115.2,0.0026062]
[1761648404377,0.7671,4115.3,4115.2,1.1791362]
[1761648404581,0.2165,4115.3,4115.2,1.1791362]
[1761648404887,0.2165,4115.6,4115.5,0.8763]
[1761648405277,0.2165,4115.6,4115.5,1.3137]
[1761648405585,0.5396,4115.8,4115.7,1.17648]
[1761648406281,0.2165,4115.8,4115.7,1.17648]
[1761648406479,0.5396,4115.8,4115.7,1.17648]
[1761648407576,0.7671,4115.8,4115.7,1.17648]
[1761648408185,0.7671,4115.8,4115.7,0.7391]
[1761648409884,0.7671,4115.8,4115.3,0.5269]
[1761648409885,0.7671,4115.4,4115.3,0.5269]
[1761648410383,0.7671,4115.4,4115.3,0.96432]
[1761648411183,0.7671,4115.4,4115.3,1.17652]
[1761648417889,0.7671,4115.4,4115.3,0.7391]
[1761648418991,0.7671,4115.4,4115.2,0.4400362]
[1761648419191,0.7671,4115.4,4115.3,0.7391]
[1761648419392,0.7671,4115.4,4115.3,1.17652]
[1761648420697,0.7671,4115.4,4115.3,0.7391]
[1761648422289,0.5396,4115.4,4115.3,1.17652]
[1761648422491,3.6518,4115.9,4115.8,0.2126]
[1761648422695,4.21379655,4115.9,4115.8,0.5269]
[1761648423192,4.53689655,4115.9,4115.8,0.5269]
[1761648423786,3.76979655,4115.9,4115.8,0.7391]
[1761648423993,3.98629655,4115.9,4115.8,0.7391]
[1761648424298,4.53689655,4115.9,4115.8,0.5269]
[1761648424492,0.2271,4115.7,4115.6,0.3394]
[1761648424698,0.7981,4115.7,4115.6,0.3394]
[1761648425199,0.7981,4115.7,4115.6,0.5618]
[1761648425592,0.571,4115.4,4115.3,0.7835]
[1761648425791,0.7981,4115.4,4115.3,0.7835]
[1761648429301,0.7981,4115.4,4115.3,1.22092]
[1761648429502,0.2271,4115.4,4115.3,1.22092]
[1761648429797,0.3275,4115.6,4115.4,0.3285]
[1761648430098,0.5429,4115.8,4115.7,0.4444]
[1761648430292,1.10573034,4115.8,4115.7,0.7729]
[1761648433602,1.31533034,4115.8,4115.7,0.7729]
[1761648437212,0.56283034,4115.8,4115.7,1.21028]
[1761648437912,0.2154,4116.4,4116.3,1.21021]
[1761648438099,4.65352824,4117.0,4116.5,0.1369]
[1761648438100,0.5429,4116.6,4116.5,0.1369]
[1761648438299,0.7525,4116.6,4116.5,0.9098]
[1761648438707,0.7525,4116.6,4116.5,0.5477]
[1761648438907,0.5429,4116.2,4116.1,0.4444]
[1761648439109,0.7525,4116.2,4116.1,0.4444]
[1761648439612,0.7525,4116.2,4116.1,0.7729]
[1761648440814,0.8253,4116.2,4116.1,0.7729]
[1761648441116,0.7525,4116.2,4116.1,0.7729]
[1761648441321,0.8253,4116.2,4116.1,0.7729]
[1761648441922,0.6157,4116.2,4116.1,0.7729]
[1761648443428,0.5429,4116.2,4116.1,0.7729]
[1761648444629,0.7525,4116.2,4116.1,0.7729]
[1761648451426,1.31657654,4116.2,4116.1,0.7729]
[1761648454227,1.38937654,4116.2,4116.1,0.7729]
[1761648457429,0.5448,4115.7,4115.6,0.89098]
[1761648457629,0.2178,4115.7,4115.6,0.89098]
[1761648457829,0.5448,4115.9,4115.6,0.89098]
[1761648458029,0.7644,4115.9,4115.8,0.78]
[1761648458230,0.327,4115.8,4115.6,0.3264]
[1761648458428,0.8949,4115.5,4115.4,4.2244]
[1761648458628,0.8949,4115.5,4115.4,0.549]
[1761648459025,0.327,4115.4,4115.2,0.5516062]
[1761648459230,0.7644,4115.3,4115.2,0.3290062]
[1761648460232,0.7644,4115.3,4115.2,0.9890362]
[1761648462033,0.7644,4115.3,4115.2,0.5516062]
[1761648463135,0.7644,4115.3,4115.2,0.9890362]
[1761648463630,0.7644,4115.3,4115.2,1.2200362]
[1761648463933,0.4374,4115.3,4115.2,1.2200362]
[1761648464933,0.2178,4115.3,4115.2,1.2200362]
[1761648465324,0.5448,4115.5,4115.4,0.4536]
[1761648465530,0.5448,4115.5,4115.4,0.78]
[1761648465833,0.7644,4115.5,4115.4,0.78]
[1761648474741,0.8949,4115.5,4115.4,0.549]
[1761648475642,0.7644,4115.5,4115.4,0.549]
[1761648477442,0.7644,4115.4,4115.3,0.3264]
[1761648477741,0.7644,4115.4,4115.3,0.549]
[1761648478945,0.7644,4115.4,4115.3,0.78]
[1761648479334,0.7644,4115.4,4115.2,0.0026062]
[1761648479530,1.33174986,4115.3,4115.2,0.0026062]
[1761648480343,1.33174986,4115.3,4115.2,0.3290062]
[1761648481244,1.33174986,4115.3,4115.2,0.0026062]
[1761648482047,1.33174986,4115.3,4115.2,0.3290062]
[1761648482445,1.33174986,4115.3,4115.2,0.5516062]
[1761648486146,1.33174986,4115.3,4115.2,0.0026062]
[1761648487951,1.33174986,4115.3,4115.2,0.5353062]
[1761648488147,1.33174986,4115.3,4115.2,0.7625062]
[1761648488351,0.56734986,4115.3,4115.2,1.1999362]
[1761648488750,3.2078,4115.7,4115.6,1.19729]
[1761648490043,3.2078,4115.7,4115.6,0.7599]
[1761648491047,3.2078,4115.7,4115.6,1.19729]
[1761648491450,0.7605,4116.0,4115.9,0.7599]
[1761648491751,1.32780648,4116.0,4115.9,0.7599]
[1761648493653,1.46500648,4116.0,4115.9,0.5327]
[1761648495149,0.3241,4115.9,4115.6,0.5327]
[1761648495352,0.7605,4115.7,4115.6,0.7599]
[1761648495754,1.32766899,4115.7,4115.6,0.7599]
[1761648495955,0.7605,4115.7,4115.6,0.7599]
[1761648496749,0.3241,4116.0,4115.7,0.3157]
[1761648496955,0.5484,4116.0,4115.9,0.7599]
[1761648497356,1.3276493,4116.0,4115.9,0.7599]
[1761648500356,0.7914493,4116.0,4115.9,0.7599]
[1761648500655,1.1155493,4116.0,4115.9,0.7599]
[1761648500847,1.3276493,4116.0,4115.9,0.7599]
[1761648501561,1.3276493,4116.0,4115.9,0.5327]
[1761648502154,1.4648493,4116.0,4115.9,0.5327]
[1761648505059,1.3276493,4116.0,4115.9,0.5327]
[1761648505259,1.3276493,4116.0,4115.9,0.7599]
[1761648507960,0.7914493,4116.0,4115.9,1.19726]
[1761648508256,3.2078,4116.7,4116.2,1.09332]
[1761648508456,3.2078,4116.7,4116.6,1.19718]
[1761648508657,3.43478639,4117.2,4117.1,0.7599]
[1761648508863,4.54115416,4117.2,4117.1,0.7599]
[1761648510163,3.97098639,4117.2,4117.1,0.7599]
[1761648517666,0.76318639,4117.2,4117.1,0.7599]
[1761648519365,3.2298,4117.8,4117.3,0.4372]
[1761648519572,3.2298,4117.8,4117.7,0.7743]
[1761648519771,0.022,4117.8,4117.7,1.21146]
[1761648520178,0.022,4117.8,4117.7,1.28426]
[1761648520381,0.02401704,4117.8,4117.7,1.28426]
[1761648520978,0.02401704,4117.8,4117.7,1.21146]
[1761648523585,3.4369,4118.3,4118.2,1.21141]
[1761648524680,3.43865029,4118.3,4118.2,0.77658715]
[1761648525482,3.43865029,4118.3,4118.2,1.21369715]
[1761648525884,3.76345029,4118.3,4118.2,1.21369715]
[1761648528887,0.00175029,4118.3,4118.2,1.21369715]
[1761648530682,0.23085029,4118.3,4118.2,1.21369715]
[1761648530985,3.4369,4118.9,4118.8,1.21135]
[1761648531889,3.76367387,4118.9,4118.8,1.21135]
[1761648532091,3.43887387,4118.9,4118.8,1.21135]
[1761648533785,0.00197387,4118.9,4118.8,1.21135]
[1761648534292,0.00197387,4118.9,4118.8,1.28415]
[1761648535184,3.2078,4119.4,4119.3,1.21129]
[1761648536191,3.20979834,4119.4,4119.3,1.21129]
[1761648536594,3.43889834,4119.4,4119.3,0.7743]
[1761648536896,3.97879834,4119.4,4119.3,0.5576]
[1761648539887,0.769,4119.2,4119.1,0.2318]
[1761648540496,0.769,4119.2,4119.1,0.5576]
[1761648540897,0.769,4119.2,4119.1,0.7743]
[1761648545092,0.769,4119.2,4119.1,0.5576]
[1761648546498,0.769,4119.2,4119.1,0.7723]
[1761648547601,0.7924,4118.8,4118.7,0.2089]
[1761648547995,0.7924,4118.8,4118.7,0.4295]
[1761648548199,0.2207,4118.8,4118.7,1.20606]
[1761648548699,0.7924,4118.8,4118.7,0.769]
[1761648549691,0.7924,4118.8,4118.7,1.20606]
[1761648551400,0.7924,4118.8,4118.7,0.769]
[1761648552194,0.3462,4118.7,4118.6,4.1069]
[1761648552399,0.7924,4118.7,4118.6,4.4464]
[1761648552600,0.7924,4118.7,4118.6,5.10407]
[1761648557000,0.7924,4118.7,4118.6,4.667]
[1761648557501,0.5717,4119.3,4119.2,0.2206]
[1761648557699,1.36100283,4119.3,4119.2,0.769]
[1761648559400,1.01480283,4119.3,4119.2,1.20601]
[1761648559996,0.78930283,4119.3,4119.2,1.20601]
[1761648562004,0.2207,4119.3,4119.2,1.20601]
[1761648562207,3.20979834,4119.4,4119.3,1.20599]
[1761648562404,3.78028064,4119.4,4119.3,1.20599]
[1761648563305,0.57248064,4119.4,4119.3,1.20599]
[1761648563505,0.00199834,4119.4,4119.3,1.27879]
[1761648564707,0.00199834,4119.4,4119.3,1.20599]
[1761648567206,0.00199834,4119.4,4119.3,4.41379]
[1761648572317,0.00199834,4119.4,4119.3,8.31179]
[1761648588122,0.00199834,4119.4,4119.3,10.06018906]
[1761648588327,3.2078,4120.2,4120.1,1.20471]
[1761648589418,3.20953511,4120.2,4120.1,1.20471]
[1761648590019,0.00173511,4120.2,4120.1,5.10271]
[1761648590930,0.00173511,4120.2,4120.1,5.17551]
[1761648591435,0.00173511,4120.2,4120.1,5.10271]
[1761648593443,0.00173511,4120.2,4120.1,1.20471]
[1761648598949,0.54973511,4120.2,4120.1,1.20471]
[1761648599340,0.77713511,4120.2,4120.1,0.7678]
[1761648600551,0.77713511,4120.2,4120.1,1.20471]
[1761648604557,0.21523511,4120.2,4120.1,1.20471]
[1761648604756,0.00173511,4120.2,4120.1,1.20471]
[1761648605956,0.00173511,4120.2,4120.1,0.7678]
[1761648606153,0.4348,4119.9,4119.7,3.2078]
[1761648606353,1.33051588,4119.8,4119.7,0.3322]
[1761648606858,0.7576,4119.4,4119.3,0.5481]
[1761648607156,0.7576,4119.4,4119.3,0.775]
[1761648607550,0.3475,4119.3,4119.2,3.2078]
[1761648607751,0.7752,4119.3,4119.2,3.7631]
[1761648608057,0.7752,4118.9,4118.8,0.7868]
[1761648608257,0.7752,4118.9,4118.8,1.22385]
[1761648609257,0.7752,4119.2,4119.1,0.3245]
[1761648609457,0.7752,4119.2,4119.1,1.22382]
[1761648609661,0.4277,4119.2,4119.1,1.22382]
[1761648610657,0.7752,4119.2,4119.1,0.7868]
[1761648611561,0.7752,4119.2,4119.1,1.22382]
[1761648612363,0.7752,4119.2,4119.0,0.1263]
[1761648612364,0.5663,4119.5,4119.4,1.22378]
[1761648612756,0.7752,4119.5,4119.4,1.22378]
[1761648613663,0.7752,4119.5,4119.4,0.7868]
[1761648614454,0.7752,4119.5,4119.4,1.22378]
[1761648618763,0.3475,4119.8,4119.5,0.43697]
[1761648618965,0.5663,4119.8,4119.7,0.7868]
[1761648619168,0.7752,4119.8,4119.7,0.7868]
[1761648619368,1.34707037,4119.8,4119.7,0.7868]
[1761648621565,1.34707037,4119.8,4119.7,0.3245]
[1761648621768,0.7752,4119.5,4119.4,0.5553]
[1761648622671,0.7752,4119.2,4119.1,0.3245]
[1761648622871,0.3475,4119.1,4118.6,0.3245]
[1761648623170,0.2188,4118.7,4118.6,1.22387]
[1761648623473,0.5663,4118.7,4118.6,1.22387]
[1761648623972,0.7752,4118.7,4118.6,1.22387]
[1761648628771,0.7752,4118.7,4118.6,0.7868]
[1761648629567,0.848,4118.7,4118.6,0.3245]
[1761648629769,0.7752,4118.4,4118.3,0.6679]
[1761648630073,0.7752,4118.4,4118.3,0.8994]
[1761648630267,0.7752,4118.4,4118.3,1.2239]
[1761648631974,0.7752,4118.4,4118.3,0.7868]
[1761648633073,0.848,4118.4,4118.3,1.2239]
[1761648633575,0.2188,4118.4,4118.3,1.2239]
[1761648634473,0.7773,4118.7,4118.6,0.7751]
[1761648635777,0.7773,4118.7,4118.6,1.21217]
[1761648636275,0.3437,4118.9,4118.7,0.3351]
[1761648636469,0.7776,4118.9,4118.8,0.7751]
[1761648637476,1.34884351,4118.9,4118.8,0.7751]
[1761648638377,0.7776,4118.9,4118.8,0.7751]
[1761648639283,1.34882484,4118.9,4118.8,0.7751]
[1761648641775,1.34882484,4118.9,4118.8,1.21215]
[1761648641975,1.34882484,4118.9,4118.8,0.7751]
[1761648642176,0.7776,4118.9,4118.8,0.7751]
[1761648642469,3.7762,4119.2,4119.0,0.1327]
[1761648642672,3.9854,4119.2,4119.1,0.7751]
[1761648642880,4.55659171,4119.2,4119.1,0.7751]
[1761648643473,4.55659171,4119.2,4119.1,1.21212]
[1761648643474,3.77899171,4119.2,4119.1,1.21212]
[1761648643779,0.2247,4119.6,4119.5,0.9078]
[1761648643981,0.7958422,4119.6,4119.5,0.9078]
[1761648645182,0.7958422,4119.6,4119.5,1.34477]
[1761648645475,3.2078,4119.7,4119.6,1.21206]
[1761648645783,3.4325,4119.7,4119.6,1.21206]
[1761648647470,3.2078,4119.7,4119.6,1.21206]
[1761648647674,0.3437,4120.0,4119.9,1.21203]
[1761648647675,0.5684,4120.0,4119.9,1.21203]
[1761648648181,0.22643511,4120.2,4120.1,0.7751]
[1761648648376,0.79721153,4120.2,4120.1,0.7751]
[1761648648577,0.22643511,4120.2,4120.1,0.7751]
[1761648649381,0.22643511,4120.2,4120.1,1.21201]
[1761648649382,0.00173511,4120.2,4120.1,1.21201]
[1761648651378,0.57013511,4120.2,4120.1,0.7751]
[1761648651583,0.77933511,4120.2,4120.1,0.5542]
[1761648651980,0.77933511,4120.2,4120.1,0.7751]
[1761648653880,0.85213511,4120.2,4120.1,0.7751]
[1761648654075,0.85213511,4120.2,4120.1,0.5542]
[1761648654475,0.7776,4119.7,4119.6,0.87696]
[1761648655179,0.7776,4119.7,4119.6,1.21206]
[1761648656090,0.7776,4120.1,4120.0,0.5542]
[1761648658586,0.7776,4120.1,4120.0,0.9078]
[1761648659680,0.7776,4120.1,4120.0,1.34472]
[1761648662691,0.7776,4120.1,4120.0,0.9078]
[1761648664085,0.7776,4120.1,4120.0,1.34472]
[1761648664795,0.7776,4120.1,4120.0,0.7751]
[1761648664984,0.7776,4120.1,4120.0,0.5542]
[1761648666491,0.433,4119.7,4119.6,0.5384]
[1761648666697,0.7499,4119.7,4119.6,0.5384]
[1761648668394,0.1341,4119.5,4119.4,3.898]
[1761648668593,0.9144,4119.5,4119.4,3.898]
[1761648668794,0.9872,4119.5,4119.4,3.898]
[1761648668994,0.7803,4119.5,4119.4,4.6648]
[1761648670303,0.7803,4119.5,4119.4,5.10178]
[1761648670304,0.4463,4119.5,4119.4,5.10178]
[1761648671600,0.7803,4119.5,4119.4,5.10178]
[1761648671796,0.7803,4119.5,4119.4,4.6648]
[1761648672304,0.7803,4119.5,4119.4,0.7668]
[1761648677407,0.7803,4119.5,4119.4,0.5544]
[1761648678403,1.35233047,4119.5,4119.4,0.5544]
[1761648681109,1.42513047,4119.5,4119.4,0.5544]
[1761648681304,1.35233047,4119.5,4119.4,0.5544]
[1761648681611,1.48643047,4119.5,4119.4,0.5544]
[1761648681809,1.55923047,4119.5,4119.0,0.1327]
[1761648682005,1.55923047,4119.5,4118.8,0.33]
[1761648682006,0.334,4119.2,4118.8,0.33]
[1761648682213,0.7803,4118.9,4118.8,0.5544]
[1761648685017,0.7803,4118.9,4118.8,0.7668]
[1761648688511,0.7803,4118.9,4118.8,0.5544]
[1761648688914,0.4463,4118.9,4118.6,3.2078]
[1761648689120,0.7803,4118.8,4118.7,0.33]
[1761648689419,0.7803,4118.8,4118.7,0.5544]
[1761648689618,0.8531,4118.8,4118.7,0.5544]
[1761648690414,0.7803,4118.8,4118.7,0.5544]
[1761648693728,41.5803,4118.8,4118.7,0.5544]
[1761648694219,41.5803,4118.8,4118.7,0.7668]
[1761648694419,0.7803,4118.8,4118.7,0.7668]
[1761648694823,0.3429,4118.7,4118.5,0.3445]
[1761648695126,0.7865,4118.6,4118.5,0.5635]
[1761648695512,0.7865,4118.6,4118.5,0.7766]
[1761648695719,0.7865,4118.6,4118.5,0.3445]
[1761648696022,0.7865,4118.6,4118.2,0.00228715]
[1761648696023,0.7865,4118.3,4118.2,0.00228715]
[1761648696618,1.35565862,4118.3,4118.2,0.00228715]
[1761648696826,1.35565862,4118.3,4118.2,0.34678715]
[1761648697323,1.35565862,4118.3,4118.2,0.00228715]
[1761648697726,1.42845862,4118.3,4118.2,0.00228715]
[1761648700125,1.35565862,4118.3,4118.2,0.34678715]
[1761648700327,0.7865,4118.3,4118.2,0.34678715]
[1761648702128,0.7865,4118.3,4118.2,0.56578715]
[1761648704331,0.8593,4118.3,4118.2,0.34678715]
[1761648704527,0.7865,4118.3,4118.2,0.00228715]
[1761648704927,0.8593,4118.3,4118.2,0.00228715]
[1761648706133,1.42805818,4118.3,4118.2,0.00228715]
[1761648707134,1.35525818,4118.3,4118.2,0.00228715]
[1761648707732,1.35525818,4118.3,4118.2,0.34678715]
[1761648709636,0.7865,4118.3,4118.2,0.56578715]
[1761648710233,1.35555445,4118.3,4118.2,0.56578715]
[1761648713037,0.79535445,4118.3,4118.2,0.77888715]
[1761648713237,0.56905445,4118.3,4118.2,0.77888715]
[1761648714138,0.79535445,4118.3,4118.2,0.77888715]
[1761648714333,1.13825445,4118.3,4118.2,0.77888715]
[1761648714639,1.35555445,4118.3,4118.2,0.77888715]
[1761648718437,1.35555445,4118.3,4118.2,0.00228715]
[1761648718740,1.42835445,4118.3,4118.2,0.00228715]
[1761648719336,1.35555445,4118.3,4118.2,0.00228715]
[1761648719545,1.42835445,4118.3,4118.2,0.00228715]
[1761648719744,1.35555445,4118.3,4118.2,0.00228715]
[1761648719945,1.42835445,4118.3,4118.2,0.00228715]
[1761648720440,1.35555445,4118.3,4118.2,0.00228715]
[1761648720640,1.35555445,4118.3,4118.2,0.34678715]
[1761648720938,1.35555445,4118.3,4118.2,0.56578715]
[1761648725949,1.35555445,4118.3,4118.2,0.77888715]
[1761648726641,0.56905445,4118.3,4118.2,0.77888715]
[1761648726843,0.56905445,4118.3,4118.2,1.21599715]
[1761648727041,0.56905445,4118.3,4118.2,1.28879715]
[1761648728249,0.56905445,4118.3,4118.2,1.21599715]
[1761648731652,0.56905445,4118.3,4118.2,1.28879715]
[1761648732455,0.56905445,4118.3,4118.2,1.21599715]
[1761648732655,0.56905445,4118.3,4118.2,1.28879715]
[1761648735563,0.7715,4119.0,4118.9,0.4394]
[1761648735750,1.34454786,4119.0,4118.9,0.7586]
[1761648736356,0.7715,4118.7,4118.6,0.5336]
[1761648736560,1.34454786,4118.7,4118.6,0.5336]
[1761648736862,0.4415,4118.4,4118.3,0.2144]
[1761648737162,1.34454786,4118.4,4118.3,0.4394]
[1761648737361,1.34454786,4118.4,4118.3,0.8765]
[1761648737658,1.34454786,4118.4,4118.3,1.1957]
[1761648737856,1.01454786,4118.4,4118.3,1.1957]
[1761648739463,1.34454786,4118.4,4118.3,1.1957]
[1761648740762,1.01454786,4118.4,4118.3,1.1957]
[1761648741164,0.79814786,4118.4,4118.3,1.1957]
[1761648741358,0.5551,4118.6,4118.5,0.8846]
[1761648741558,1.12992717,4118.6,4118.5,0.8846]
[1761648742060,1.12992717,4118.6,4118.5,1.32168]
[1761648742061,0.79992717,4118.6,4118.5,1.32168]
[1761648743070,0.79992717,4118.6,4118.5,0.8846]
[1761648744662,1.12992717,4118.6,4118.5,0.8846]
[1761648744867,1.34632717,4118.6,4118.5,0.8846]
[1761648745068,1.34632717,4118.6,4118.5,0.7586]
[1761648746873,1.34632717,4118.6,4118.5,0.5336]
[1761648747071,4.55412717,4118.6,4118.5,0.5336]
[1761648747474,4.62692717,4118.6,4118.5,0.5336]
[1761648747666,0.5551,4118.3,4118.2,0.00228715]
[1761648747871,1.34632717,4118.3,4118.2,0.00228715]
[1761648748168,1.34632717,4118.3,4118.2,0.53588715]
[1761648749473,1.41912717,4118.3,4118.2,0.00228715]
[1761648749775,1.34632717,4118.3,4118.2,0.00228715]
[1761648750472,1.34632717,4118.3,4118.2,0.32148715]
[1761648752571,1.34632717,4118.3,4118.2,0.00228715]
[1761648753472,1.41912717,4118.3,4118.2,0.00228715]